[Event "*** Titled Tuesday Blitz"]
[Site "Chess.com"]
[Date "2020.10.27"]
[Round "3"]
[White "Semen_Khanin"]
[Black "ArjunErigaisi2003"]
[Result "1-0"]
[WhiteElo "2761"]
[BlackElo "2991"]
[TimeControl "180+1"]
[EndTime "10:27:18 PDT"]
[Termination "Semen_Khanin won by resignation"]

1. e4 {[%clk 0:03:00.9]} 1... e5 {[%clk 0:02:59.7]} 2. Nf3 {[%clk 0:03:00.7]}
2... Nc6 {[%clk 0:02:58.4]} 3. Bb5 {[%clk 0:03:00.8]} 3... a6 {[%clk 0:02:57.8]}
4. Ba4 {[%clk 0:03:01]} 4... Nf6 {[%clk 0:02:57.3]} 5. O-O {[%clk 0:03:01.1]}
5... Nxe4 {[%clk 0:02:55.4]} 6. d4 {[%clk 0:03:00.8]} 6... Be7 {[%clk 0:02:50]}
7. Re1 {[%clk 0:02:58.8]} 7... b5 {[%clk 0:02:48]} 8. Rxe4 {[%clk 0:02:55.5]}
8... d5 {[%clk 0:02:47.2]} 9. Nxe5 {[%clk 0:02:54.1]} 9... Nxe5 {[%clk
0:02:47.2]} 10. Rxe5 {[%clk 0:02:54.6]} 10... bxa4 {[%clk 0:02:47.8]} 11. Qe1
{[%clk 0:02:49.6]} 11... Be6 {[%clk 0:02:46.9]} 12. b3 {[%clk 0:02:49.2]} 12...
O-O {[%clk 0:02:45]} 13. Ba3 {[%clk 0:02:29.1]} 13... Bxa3 {[%clk 0:02:02.6]}
14. Nxa3 {[%clk 0:02:29.1]} 14... Qd6 {[%clk 0:02:03.3]} 15. Nb1 {[%clk
0:02:27.1]} 15... c5 {[%clk 0:02:01.7]} 16. Nd2 {[%clk 0:02:19.8]} 16... cxd4
{[%clk 0:01:43.7]} 17. Nf3 {[%clk 0:02:19.8]} 17... d3 {[%clk 0:01:42]} 18. cxd3
{[%clk 0:02:19.3]} 18... axb3 {[%clk 0:01:40.6]} 19. axb3 {[%clk 0:02:19.6]}
19... Qb6 {[%clk 0:01:36.9]} 20. b4 {[%clk 0:02:11.1]} 20... h6 {[%clk
0:01:27.7]} 21. h3 {[%clk 0:01:47.1]} 21... Rfb8 {[%clk 0:01:25.4]} 22. Rc1
{[%clk 0:01:32.3]} 22... Qxb4 {[%clk 0:01:23.4]} 23. Rxe6 {[%clk 0:01:32.6]}
23... fxe6 {[%clk 0:01:20.7]} 24. Rc8+ {[%clk 0:01:32.6]} 24... Kf7 {[%clk
0:01:02.1]} 25. Qxb4 {[%clk 0:00:48.6]} 25... Rxb4 {[%clk 0:01:03]} 26. Rxa8
{[%clk 0:00:49]} 26... Ra4 {[%clk 0:01:02.9]} 27. d4 {[%clk 0:00:48.6]} 27...
Kf6 {[%clk 0:00:55.8]} 28. g4 {[%clk 0:00:46.5]} 28... a5 {[%clk 0:00:53.8]} 29.
Kg2 {[%clk 0:00:46.6]} 29... Ra1 {[%clk 0:00:53.9]} 30. Ra7 {[%clk 0:00:46]}
30... Ra4 {[%clk 0:00:44.2]} 31. h4 {[%clk 0:00:43.8]} 31... g6 {[%clk
0:00:40.8]} 32. Kg3 {[%clk 0:00:36.6]} 32... g5 {[%clk 0:00:33.4]} 33. h5 {[%clk
0:00:35.7]} 33... Ra3 {[%clk 0:00:31.7]} 34. Rh7 {[%clk 0:00:35.2]} 1-0

[Event "*** Titled Tuesday Blitz"]
[Site "Chess.com"]
[Date "2020.10.27"]
[Round "3"]
[White "Ali_rastbod"]
[Black "BrandonJacobson"]
[Result "0-1"]
[WhiteElo "2599"]
[BlackElo "2948"]
[TimeControl "180+1"]
[EndTime "10:27:18 PDT"]
[Termination "BrandonJacobson won by resignation"]

1. c4 {[%clk 0:03:00.9]} 1... e5 {[%clk 0:03:00]} 2. Nc3 {[%clk 0:03:01.1]} 2...
Nf6 {[%clk 0:03:00.5]} 3. Nf3 {[%clk 0:03:01.6]} 3... Nc6 {[%clk 0:03:01]} 4. e4
{[%clk 0:03:02.2]} 4... Bb4 {[%clk 0:03:01.3]} 5. d3 {[%clk 0:03:02.5]} 5... d6
{[%clk 0:03:01.9]} 6. a3 {[%clk 0:03:03]} 6... Bc5 {[%clk 0:03:02.5]} 7. b4
{[%clk 0:03:03.1]} 7... Bb6 {[%clk 0:03:03.1]} 8. Na4 {[%clk 0:03:03.6]} 8...
Bd4 {[%clk 0:03:03.5]} 9. Nxd4 {[%clk 0:03:02.1]} 9... Nxd4 {[%clk 0:03:04.4]}
10. Be2 {[%clk 0:02:59.6]} 10... O-O {[%clk 0:03:04.4]} 11. O-O {[%clk
0:02:53.5]} 11... c6 {[%clk 0:03:04.8]} 12. Nc3 {[%clk 0:02:53.1]} 12... a5
{[%clk 0:03:04.1]} 13. Rb1 {[%clk 0:02:53.1]} 13... b5 {[%clk 0:03:04.2]} 14.
cxb5 {[%clk 0:02:51.7]} 14... cxb5 {[%clk 0:03:04.3]} 15. Bg5 {[%clk 0:02:52.2]}
15... axb4 {[%clk 0:02:49.7]} 16. axb4 {[%clk 0:02:47.2]} 16... Be6 {[%clk
0:02:49.1]} 17. f4 {[%clk 0:02:44.2]} 17... Ra3 {[%clk 0:02:47.8]} 18. fxe5
{[%clk 0:02:39]} 18... dxe5 {[%clk 0:02:47.3]} 19. Rc1 {[%clk 0:02:23.8]} 19...
Rxc3 {[%clk 0:02:28.6]} 20. Rxc3 {[%clk 0:02:07.6]} 20... Nxe2+ {[%clk
0:02:28.8]} 21. Qxe2 {[%clk 0:01:33.2]} 21... Qd4+ {[%clk 0:02:27.1]} 22. Qf2
{[%clk 0:01:34.1]} 22... Qxc3 {[%clk 0:01:37.7]} 23. Bxf6 {[%clk 0:01:31.5]}
23... gxf6 {[%clk 0:01:38.6]} 24. Qxf6 {[%clk 0:01:03.9]} 24... Rc8 {[%clk
0:01:33.3]} 25. h4 {[%clk 0:00:58.7]} 25... Kf8 {[%clk 0:00:57.8]} 26. h5 {[%clk
0:00:47.8]} 26... Qxd3 {[%clk 0:00:49.8]} 27. Qxe5 {[%clk 0:00:39.1]} 27... Rd8
{[%clk 0:00:37.3]} 28. Rf2 {[%clk 0:00:24.9]} 28... Qd1+ {[%clk 0:00:35.4]} 29.
Kh2 {[%clk 0:00:20.7]} 29... Qd6 {[%clk 0:00:35.5]} 0-1

[Event "*** Titled Tuesday Blitz"]
[Site "Chess.com"]
[Date "2020.10.27"]
[Round "3"]
[White "Sychev_Klementy"]
[Black "Karateloru"]
[Result "1-0"]
[WhiteElo "2859"]
[BlackElo "2662"]
[TimeControl "180+1"]
[EndTime "10:27:21 PDT"]
[Termination "Sychev_Klementy won by resignation"]

1. d4 {[%clk 0:02:57.5]} 1... Nf6 {[%clk 0:02:59.6]} 2. Nf3 {[%clk 0:02:56.4]}
2... e6 {[%clk 0:03:00]} 3. Bf4 {[%clk 0:02:56.3]} 3... d5 {[%clk 0:02:59.7]} 4.
e3 {[%clk 0:02:56.2]} 4... Bd6 {[%clk 0:02:59.3]} 5. Nbd2 {[%clk 0:02:54.1]}
5... Ne4 {[%clk 0:02:53.1]} 6. Bd3 {[%clk 0:02:46.4]} 6... f5 {[%clk 0:02:49.1]}
7. Ne5 {[%clk 0:02:43.9]} 7... O-O {[%clk 0:02:48.6]} 8. O-O {[%clk 0:02:41.3]}
8... Nd7 {[%clk 0:02:48]} 9. Ndf3 {[%clk 0:02:38.1]} 9... Nxe5 {[%clk
0:02:45.8]} 10. Nxe5 {[%clk 0:02:37.2]} 10... g5 {[%clk 0:02:40.9]} 11. Bg3
{[%clk 0:02:36.3]} 11... Nxg3 {[%clk 0:02:34.6]} 12. hxg3 {[%clk 0:02:30.4]}
12... Bxe5 {[%clk 0:02:34.6]} 13. dxe5 {[%clk 0:02:30.2]} 13... g4 {[%clk
0:02:30.8]} 14. c4 {[%clk 0:02:22.8]} 14... c6 {[%clk 0:02:30.6]} 15. c5 {[%clk
0:02:16.8]} 15... Kg7 {[%clk 0:02:27.3]} 16. b4 {[%clk 0:02:03]} 16... Bd7
{[%clk 0:02:14.3]} 17. f4 {[%clk 0:01:55.4]} 17... h5 {[%clk 0:02:12.8]} 18. Kf2
{[%clk 0:01:55.1]} 18... h4 {[%clk 0:02:12.9]} 19. Rh1 {[%clk 0:01:53.8]} 19...
Rh8 {[%clk 0:02:12.2]} 20. Qd2 {[%clk 0:01:50.9]} 20... Qe7 {[%clk 0:02:11.3]}
21. Qb2 {[%clk 0:01:20.5]} 21... hxg3+ {[%clk 0:02:03.4]} 22. Kxg3 {[%clk
0:01:19.8]} 22... a5 {[%clk 0:02:03.3]} 23. bxa5 {[%clk 0:01:15.6]} 23... Qxc5
{[%clk 0:02:02]} 24. Rhe1 {[%clk 0:01:05.7]} 24... Qe7 {[%clk 0:01:57.1]} 25.
Rh1 {[%clk 0:01:04.5]} 25... Qc5 {[%clk 0:01:40]} 26. Rhe1 {[%clk 0:01:04.4]}
26... Bc8 {[%clk 0:01:31.2]} 27. a4 {[%clk 0:00:59.8]} 27... Rxa5 {[%clk
0:01:26.6]} 28. Kf2 {[%clk 0:00:54.6]} 28... b6 {[%clk 0:01:03.5]} 29. Rec1
{[%clk 0:00:50.7]} 29... Qe7 {[%clk 0:01:01.5]} 30. Rxc6 {[%clk 0:00:47.3]}
30... Qh4+ {[%clk 0:01:00.7]} 31. Ke2 {[%clk 0:00:45.9]} 31... Qg3 {[%clk
0:01:00.4]} 32. Rc7+ {[%clk 0:00:34.4]} 32... Kg6 {[%clk 0:00:59]} 33. Bxf5+
{[%clk 0:00:31.9]} 1-0

[Event "*** Titled Tuesday Blitz"]
[Site "Chess.com"]
[Date "2020.10.27"]
[Round "3"]
[White "TimofeevAr"]
[Black "Rytenko_V"]
[Result "1-0"]
[WhiteElo "2779"]
[BlackElo "2536"]
[TimeControl "180+1"]
[EndTime "10:27:22 PDT"]
[Termination "TimofeevAr won by resignation"]

1. c4 {[%clk 0:03:00.9]} 1... e5 {[%clk 0:02:57.4]} 2. e3 {[%clk 0:03:00.4]}
2... d6 {[%clk 0:02:57.5]} 3. Nc3 {[%clk 0:02:59.6]} 3... g6 {[%clk 0:02:57.8]}
4. g3 {[%clk 0:02:56.5]} 4... Bg7 {[%clk 0:02:57.7]} 5. Bg2 {[%clk 0:02:56.9]}
5... c6 {[%clk 0:02:57.7]} 6. Nge2 {[%clk 0:02:55.7]} 6... Ne7 {[%clk
0:02:57.7]} 7. d4 {[%clk 0:02:53.9]} 7... O-O {[%clk 0:02:56.5]} 8. O-O {[%clk
0:02:53.6]} 8... exd4 {[%clk 0:02:54.5]} 9. Nxd4 {[%clk 0:02:53.2]} 9... Nf5
{[%clk 0:02:43]} 10. Nce2 {[%clk 0:02:48.2]} 10... Re8 {[%clk 0:02:28.8]} 11. h3
{[%clk 0:02:41.8]} 11... Na6 {[%clk 0:02:10.4]} 12. Bd2 {[%clk 0:02:29.8]} 12...
Nc5 {[%clk 0:02:08.4]} 13. Bc3 {[%clk 0:02:27.2]} 13... Ne4 {[%clk 0:02:03.5]}
14. Nxf5 {[%clk 0:02:10.7]} 14... Nxc3 {[%clk 0:01:56.6]} 15. Nxc3 {[%clk
0:02:10.7]} 15... Bxf5 {[%clk 0:01:56.5]} 16. Qd2 {[%clk 0:02:10.9]} 16... Qe7
{[%clk 0:01:48.9]} 17. Rad1 {[%clk 0:02:06.7]} 17... Rad8 {[%clk 0:01:49.2]} 18.
b3 {[%clk 0:02:07]} 18... Qe6 {[%clk 0:01:43.9]} 19. g4 {[%clk 0:02:03.7]} 19...
Bxc3 {[%clk 0:01:35.4]} 20. Qxc3 {[%clk 0:02:00.1]} 20... Bxg4 {[%clk 0:01:10]}
21. hxg4 {[%clk 0:01:59.6]} 21... Qxg4 {[%clk 0:01:10.9]} 22. Qd4 {[%clk
0:02:00]} 22... Qg5 {[%clk 0:01:10.1]} 23. f4 {[%clk 0:01:42.9]} 23... Qh4
{[%clk 0:01:04.2]} 24. f5 {[%clk 0:01:32.7]} 24... Qg5 {[%clk 0:00:51.5]} 25.
Rf4 {[%clk 0:01:32.2]} 25... gxf5 {[%clk 0:00:40.3]} 26. Rdf1 {[%clk 0:01:27.8]}
26... Re5 {[%clk 0:00:40.6]} 27. R1f3 {[%clk 0:01:24.3]} 27... Rde8 {[%clk
0:00:40]} 28. Kf2 {[%clk 0:01:24.1]} 28... Kf8 {[%clk 0:00:38.3]} 29. Qxd6+
{[%clk 0:01:23.1]} 29... R8e7 {[%clk 0:00:36.4]} 30. Rg3 {[%clk 0:01:16.1]}
30... Qh5 {[%clk 0:00:34.6]} 31. Qf6 {[%clk 0:01:12.9]} 31... R7e6 {[%clk
0:00:29]} 32. Qg7+ {[%clk 0:01:11.1]} 32... Ke8 {[%clk 0:00:29.3]} 33. Qg8+
{[%clk 0:01:08.8]} 33... Ke7 {[%clk 0:00:28.5]} 34. Rd4 {[%clk 0:01:08.7]} 34...
Kf6 {[%clk 0:00:18.3]} 35. Qg7+ {[%clk 0:01:07]} 35... Ke7 {[%clk 0:00:18.3]}
36. Qh8 {[%clk 0:00:59.1]} 1-0

[Event "*** Titled Tuesday Blitz"]
[Site "Chess.com"]
[Date "2020.10.27"]
[Round "3"]
[White "SilviusTiberius"]
[Black "VladaSviridova"]
[Result "1-0"]
[WhiteElo "2534"]
[BlackElo "2282"]
[TimeControl "180+1"]
[EndTime "10:27:23 PDT"]
[Termination "SilviusTiberius won on time"]

1. e4 {[%clk 0:03:00.9]} 1... e6 {[%clk 0:02:59.7]} 2. d4 {[%clk 0:03:00.8]}
2... d5 {[%clk 0:03:00.4]} 3. Nc3 {[%clk 0:02:59.5]} 3... Bb4 {[%clk 0:02:59.7]}
4. exd5 {[%clk 0:02:59.9]} 4... exd5 {[%clk 0:02:59.5]} 5. Bd3 {[%clk
0:03:00.5]} 5... Nc6 {[%clk 0:02:59.5]} 6. Nf3 {[%clk 0:02:59.7]} 6... Nge7
{[%clk 0:02:59.5]} 7. O-O {[%clk 0:02:59.5]} 7... Be6 {[%clk 0:02:57.2]} 8. Ne2
{[%clk 0:02:58.8]} 8... Qd7 {[%clk 0:02:54]} 9. c3 {[%clk 0:02:52]} 9... Bd6
{[%clk 0:02:53.7]} 10. Nf4 {[%clk 0:02:52.6]} 10... Bg4 {[%clk 0:02:31.9]} 11.
h3 {[%clk 0:02:52.1]} 11... Bxf3 {[%clk 0:02:31.8]} 12. Qxf3 {[%clk 0:02:53]}
12... O-O {[%clk 0:01:49.1]} 13. Nh5 {[%clk 0:02:52.5]} 13... f5 {[%clk
0:01:25]} 14. Re1 {[%clk 0:02:49.6]} 14... Kh8 {[%clk 0:01:17.5]} 15. Bd2 {[%clk
0:02:37.6]} 15... Ng6 {[%clk 0:01:10.8]} 16. g3 {[%clk 0:02:37.3]} 16... Nce7
{[%clk 0:01:02.5]} 17. Re2 {[%clk 0:02:33.3]} 17... c6 {[%clk 0:00:47.9]} 18.
Rae1 {[%clk 0:02:33.2]} 18... Rae8 {[%clk 0:00:48.3]} 19. Re6 {[%clk 0:02:21.4]}
19... b5 {[%clk 0:00:44.6]} 20. h4 {[%clk 0:02:14.5]} 20... f4 {[%clk 0:00:37]}
21. Qg4 {[%clk 0:02:10.2]} 21... Qc7 {[%clk 0:00:25.5]} 22. Kg2 {[%clk
0:02:00.5]} 22... f3+ {[%clk 0:00:24.6]} 23. Kh1 {[%clk 0:01:51.1]} 23... a5
{[%clk 0:00:24.3]} 24. Bg5 {[%clk 0:01:49.5]} 24... Kg8 {[%clk 0:00:20.6]} 25.
Nxg7 {[%clk 0:01:46.7]} 25... Kxg7 {[%clk 0:00:19.9]} 26. h5 {[%clk 0:01:47.3]}
26... b4 {[%clk 0:00:18.3]} 27. hxg6 {[%clk 0:01:25.9]} 27... hxg6 {[%clk
0:00:18]} 28. Bh4 {[%clk 0:01:25]} 28... Rh8 {[%clk 0:00:10.9]} 29. Bxg6 {[%clk
0:01:17.4]} 29... Rxh4+ {[%clk 0:00:05.6]} 30. gxh4 {[%clk 0:01:15.3]} 30... Rg8
{[%clk 0:00:05.1]} 31. Bd3+ {[%clk 0:00:57.4]} 31... Kf8 {[%clk 0:00:04.3]} 32.
Rf6+ {[%clk 0:00:57.5]} 32... Ke8 {[%clk 0:00:02]} 33. Qxg8+ {[%clk 0:00:57.6]}
33... Kd7 {[%clk 0:00:01.2]} 34. Qe6+ {[%clk 0:00:56.5]} 1-0

[Event "*** Titled Tuesday Blitz"]
[Site "Chess.com"]
[Date "2020.10.27"]
[Round "3"]
[White "maxip32"]
[Black "TomiLen"]
[Result "0-1"]
[WhiteElo "2412"]
[BlackElo "2641"]
[TimeControl "180+1"]
[EndTime "10:27:24 PDT"]
[Termination "TomiLen won on time"]

1. e4 {[%clk 0:03:00.9]} 1... e6 {[%clk 0:02:50.7]} 2. d3 {[%clk 0:02:59.9]}
2... d5 {[%clk 0:02:48.5]} 3. Nd2 {[%clk 0:03:00.4]} 3... Nf6 {[%clk 0:02:47.9]}
4. Ngf3 {[%clk 0:03:00.6]} 4... b6 {[%clk 0:02:47.2]} 5. g3 {[%clk 0:02:56.9]}
5... Bb7 {[%clk 0:02:46.2]} 6. exd5 {[%clk 0:02:50.5]} 6... Nxd5 {[%clk
0:02:43.9]} 7. Bg2 {[%clk 0:02:50.2]} 7... Nf6 {[%clk 0:02:41.8]} 8. O-O {[%clk
0:02:50]} 8... Be7 {[%clk 0:02:42]} 9. Nc4 {[%clk 0:02:48.5]} 9... c5 {[%clk
0:02:41.3]} 10. a4 {[%clk 0:02:46.3]} 10... O-O {[%clk 0:02:39.3]} 11. Bd2
{[%clk 0:02:45.6]} 11... Qc8 {[%clk 0:02:37.6]} 12. Re1 {[%clk 0:02:41.4]} 12...
Nc6 {[%clk 0:02:37.6]} 13. Bc3 {[%clk 0:02:40.8]} 13... Nd5 {[%clk 0:02:34.4]}
14. Bd2 {[%clk 0:02:38.6]} 14... Bf6 {[%clk 0:02:33.3]} 15. Qc1 {[%clk
0:02:38.1]} 15... Qc7 {[%clk 0:02:28.3]} 16. Bg5 {[%clk 0:02:32.6]} 16... Rad8
{[%clk 0:02:25.7]} 17. Bxf6 {[%clk 0:02:31.4]} 17... Nxf6 {[%clk 0:02:26.6]} 18.
h3 {[%clk 0:01:51.8]} 18... Ba8 {[%clk 0:02:24.6]} 19. Kh2 {[%clk 0:01:42.9]}
19... h6 {[%clk 0:02:21.8]} 20. Qd2 {[%clk 0:01:39.4]} 20... Rfe8 {[%clk
0:02:10.2]} 21. Ne3 {[%clk 0:01:22]} 21... Re7 {[%clk 0:02:05.6]} 22. Ng4 {[%clk
0:01:21.6]} 22... Nxg4+ {[%clk 0:02:01.2]} 23. hxg4 {[%clk 0:01:22.5]} 23... Nb4
{[%clk 0:01:52.5]} 24. Qc3 {[%clk 0:00:53.2]} 24... Bd5 {[%clk 0:01:34.2]} 25.
Ne5 {[%clk 0:00:47.7]} 25... Bxg2 {[%clk 0:01:30.9]} 26. Kxg2 {[%clk 0:00:48.6]}
26... Nc6 {[%clk 0:01:25.5]} 27. Nxc6 {[%clk 0:00:44.1]} 27... Qxc6+ {[%clk
0:01:26.4]} 28. f3 {[%clk 0:00:44.6]} 28... Rd4 {[%clk 0:01:22.3]} 29. Re4
{[%clk 0:00:37.9]} 29... Rxe4 {[%clk 0:01:20.4]} 30. fxe4 {[%clk 0:00:16.7]}
30... f5 {[%clk 0:01:19.1]} 31. gxf5 {[%clk 0:00:09.2]} 31... exf5 {[%clk
0:01:18.9]} 32. Qc4+ {[%clk 0:00:10.1]} 32... Kh7 {[%clk 0:01:05.7]} 33. Re1
{[%clk 0:00:10.6]} 33... Qf6 {[%clk 0:01:02]} 34. c3 {[%clk 0:00:06.7]} 34...
Qg5 {[%clk 0:01:02]} 35. Re2 {[%clk 0:00:06.2]} 35... f4 {[%clk 0:01:00.1]} 0-1

[Event "*** Titled Tuesday Blitz"]
[Site "Chess.com"]
[Date "2020.10.27"]
[Round "3"]
[White "Corre_por_tu_vida"]
[Black "Ze-Pequeno"]
[Result "1-0"]
[WhiteElo "2541"]
[BlackElo "2303"]
[TimeControl "180+1"]
[EndTime "10:27:25 PDT"]
[Termination "Corre_por_tu_vida won by resignation"]

1. e4 {[%clk 0:03:00.9]} 1... e5 {[%clk 0:02:58]} 2. Nf3 {[%clk 0:02:58.3]} 2...
Nc6 {[%clk 0:02:57.9]} 3. Bb5 {[%clk 0:02:57]} 3... a6 {[%clk 0:02:57.8]} 4. Ba4
{[%clk 0:02:56.6]} 4... Nf6 {[%clk 0:02:57]} 5. O-O {[%clk 0:02:56.7]} 5... Be7
{[%clk 0:02:56.8]} 6. Re1 {[%clk 0:02:56.7]} 6... b5 {[%clk 0:02:56.9]} 7. Bb3
{[%clk 0:02:57]} 7... d6 {[%clk 0:02:57.8]} 8. c3 {[%clk 0:02:57.1]} 8... O-O
{[%clk 0:02:57.8]} 9. h3 {[%clk 0:02:57.3]} 9... Nb8 {[%clk 0:02:57.7]} 10. d4
{[%clk 0:02:56.7]} 10... Nbd7 {[%clk 0:02:58.2]} 11. Nbd2 {[%clk 0:02:56.1]}
11... Bb7 {[%clk 0:02:58.1]} 12. a4 {[%clk 0:02:54.4]} 12... h6 {[%clk
0:02:54.1]} 13. Bc2 {[%clk 0:02:52.8]} 13... Re8 {[%clk 0:02:41.7]} 14. Nf1
{[%clk 0:02:52.1]} 14... Bf8 {[%clk 0:02:41.2]} 15. Ng3 {[%clk 0:02:51.6]} 15...
g6 {[%clk 0:02:41.3]} 16. b3 {[%clk 0:02:51.1]} 16... c5 {[%clk 0:02:37]} 17. d5
{[%clk 0:02:50]} 17... Bg7 {[%clk 0:02:27.4]} 18. Kh2 {[%clk 0:02:48.6]} 18...
Qc7 {[%clk 0:02:22.8]} 19. Nf1 {[%clk 0:02:45.7]} 19... c4 {[%clk 0:02:08.3]}
20. b4 {[%clk 0:02:44.9]} 20... Nb6 {[%clk 0:02:04.6]} 21. a5 {[%clk 0:02:43.5]}
21... Nbd7 {[%clk 0:02:04.4]} 22. g4 {[%clk 0:02:43.2]} 22... Kf8 {[%clk
0:02:02.4]} 23. Ng3 {[%clk 0:02:40.2]} 23... Ke7 {[%clk 0:02:01.5]} 24. Be3
{[%clk 0:02:39.4]} 24... Rh8 {[%clk 0:01:59.3]} 25. Nd2 {[%clk 0:02:38]} 25...
Rag8 {[%clk 0:01:57.5]} 26. f4 {[%clk 0:02:32.8]} 26... exf4 {[%clk 0:01:54.3]}
27. Bxf4 {[%clk 0:02:32.1]} 27... Ne8 {[%clk 0:01:50]} 28. Ra3 {[%clk
0:02:20.8]} 28... Ne5 {[%clk 0:01:39.5]} 29. Nf3 {[%clk 0:02:19.9]} 29... Bc8
{[%clk 0:01:37.3]} 30. Nxe5 {[%clk 0:02:17.6]} 30... Bxe5 {[%clk 0:01:35.6]} 31.
Bxe5 {[%clk 0:02:16.8]} 31... dxe5 {[%clk 0:01:36.2]} 32. Rf1 {[%clk 0:02:17]}
32... f6 {[%clk 0:01:30.8]} 33. Qf3 {[%clk 0:02:16.1]} 33... Kd6 {[%clk
0:01:29.8]} 34. Raa1 {[%clk 0:02:14.6]} 34... Qe7 {[%clk 0:01:24.3]} 35. Qe3
{[%clk 0:02:13.8]} 35... Qc7 {[%clk 0:01:23.8]} 36. Rf2 {[%clk 0:02:12.5]} 36...
Rf8 {[%clk 0:01:17.6]} 37. Raf1 {[%clk 0:02:11.6]} 37... Bd7 {[%clk 0:01:17.4]}
38. Rf3 {[%clk 0:02:08.6]} 38... Rf7 {[%clk 0:01:14.8]} 39. R1f2 {[%clk
0:02:08.1]} 39... Bc8 {[%clk 0:01:08.3]} 40. Nf1 {[%clk 0:02:07.5]} 40... Rff8
{[%clk 0:01:07.3]} 41. Nd2 {[%clk 0:02:07]} 41... Rf7 {[%clk 0:01:07.5]} 42. Kg2
{[%clk 0:02:06.8]} 42... Rff8 {[%clk 0:01:07.2]} 43. Kf1 {[%clk 0:02:06.6]}
43... Rf7 {[%clk 0:01:07.5]} 44. Ke1 {[%clk 0:02:06.5]} 44... Rff8 {[%clk
0:01:07.4]} 45. Kd1 {[%clk 0:02:06.2]} 45... Rf7 {[%clk 0:01:07.7]} 46. Kc1
{[%clk 0:02:06.3]} 46... Rff8 {[%clk 0:01:08]} 47. Qe2 {[%clk 0:02:06.2]} 47...
Rf7 {[%clk 0:01:07.7]} 48. Nf1 {[%clk 0:02:05.8]} 48... Rff8 {[%clk 0:01:07.1]}
49. Ne3 {[%clk 0:02:05.7]} 49... Rf7 {[%clk 0:01:07.5]} 50. h4 {[%clk
0:02:05.3]} 50... g5 {[%clk 0:00:53.1]} 51. Qf1 {[%clk 0:02:04.8]} 51... Rg8
{[%clk 0:00:46.8]} 52. Rxf6+ {[%clk 0:01:59.3]} 52... Rxf6 {[%clk 0:00:45.7]}
53. Rxf6+ {[%clk 0:01:59.2]} 53... Ke7 {[%clk 0:00:39.5]} 54. Rf7+ {[%clk
0:01:57.3]} 54... Kd8 {[%clk 0:00:36.9]} 55. Rxc7 {[%clk 0:01:56.8]} 55... Nxc7
{[%clk 0:00:37.8]} 56. Qf7 {[%clk 0:01:55.5]} 1-0

[Event "*** Titled Tuesday Blitz"]
[Site "Chess.com"]
[Date "2020.10.27"]
[Round "3"]
[White "Zhuu96"]
[Black "Lenyas66"]
[Result "1-0"]
[WhiteElo "2877"]
[BlackElo "2470"]
[TimeControl "180+1"]
[EndTime "10:27:27 PDT"]
[Termination "Zhuu96 won by resignation"]

1. c4 {[%clk 0:03:00.9]} 1... e5 {[%clk 0:02:59.5]} 2. Nc3 {[%clk 0:02:59.3]}
2... Bb4 {[%clk 0:02:59.6]} 3. Nd5 {[%clk 0:02:55.9]} 3... Be7 {[%clk
0:02:59.5]} 4. e3 {[%clk 0:02:53.7]} 4... Nf6 {[%clk 0:02:59.4]} 5. Nxe7 {[%clk
0:02:51.9]} 5... Qxe7 {[%clk 0:02:59.6]} 6. Ne2 {[%clk 0:02:52.2]} 6... O-O
{[%clk 0:02:56.3]} 7. Nc3 {[%clk 0:02:52]} 7... c6 {[%clk 0:02:46.9]} 8. d4
{[%clk 0:02:51.4]} 8... e4 {[%clk 0:02:46]} 9. Be2 {[%clk 0:02:48.3]} 9... d5
{[%clk 0:02:46]} 10. O-O {[%clk 0:02:48]} 10... Be6 {[%clk 0:02:45]} 11. b3
{[%clk 0:02:47.9]} 11... Rd8 {[%clk 0:02:37.8]} 12. a4 {[%clk 0:02:47.7]} 12...
a5 {[%clk 0:02:27.8]} 13. Ba3 {[%clk 0:02:44.4]} 13... Qd7 {[%clk 0:02:27.4]}
14. cxd5 {[%clk 0:02:39.2]} 14... cxd5 {[%clk 0:02:25.9]} 15. Nb5 {[%clk
0:02:39.5]} 15... Nc6 {[%clk 0:02:23.9]} 16. Rc1 {[%clk 0:02:40.1]} 16... Ne8
{[%clk 0:02:12.4]} 17. f3 {[%clk 0:02:38.4]} 17... exf3 {[%clk 0:02:08.6]} 18.
Bxf3 {[%clk 0:02:36.1]} 18... Na7 {[%clk 0:01:52.8]} 19. Nxa7 {[%clk 0:02:31]}
19... Rxa7 {[%clk 0:01:52.4]} 20. Bc5 {[%clk 0:02:30.9]} 20... Raa8 {[%clk
0:01:42.1]} 21. Bb6 {[%clk 0:02:30.3]} 21... Rdc8 {[%clk 0:01:40.5]} 22. Qd2
{[%clk 0:02:29.6]} 22... Nd6 {[%clk 0:01:26]} 23. Bxa5 {[%clk 0:02:23.4]} 23...
Ne4 {[%clk 0:01:25.6]} 24. Qb4 {[%clk 0:02:21.8]} 24... Ng5 {[%clk 0:01:17.9]}
25. Be2 {[%clk 0:02:18.1]} 25... Bg4 {[%clk 0:01:12.1]} 26. Bd3 {[%clk
0:01:50.1]} 26... Qe6 {[%clk 0:01:07.9]} 27. Rce1 {[%clk 0:01:49.3]} 27... Ne4
{[%clk 0:00:58.9]} 28. Bb6 {[%clk 0:01:42.4]} 28... Qg6 {[%clk 0:00:47.1]} 29.
a5 {[%clk 0:01:41.4]} 29... h5 {[%clk 0:00:33.9]} 30. Qe7 {[%clk 0:01:39.6]}
30... Rc3 {[%clk 0:00:22.5]} 31. Bxe4 {[%clk 0:01:35.8]} 31... dxe4 {[%clk
0:00:21.4]} 32. Qxb7 {[%clk 0:01:34.9]} 32... Re8 {[%clk 0:00:20.9]} 33. Rf2
{[%clk 0:01:29.7]} 33... h4 {[%clk 0:00:18.5]} 34. a6 {[%clk 0:01:24.4]} 34...
Rxb3 {[%clk 0:00:18.2]} 35. a7 {[%clk 0:01:23.8]} 35... Rxb6 {[%clk 0:00:16]}
36. a8=Q {[%clk 0:01:23.9]} 36... Rxa8 {[%clk 0:00:15.8]} 37. Qxa8+ {[%clk
0:01:23.4]} 37... Kh7 {[%clk 0:00:15.9]} 38. Qd8 {[%clk 0:01:22.1]} 38... h3
{[%clk 0:00:13.2]} 39. Qh4+ {[%clk 0:01:21.9]} 39... Kg8 {[%clk 0:00:13]} 40.
Rc1 {[%clk 0:01:20.6]} 40... Rb8 {[%clk 0:00:12.3]} 41. Qg3 {[%clk 0:01:17.3]}
41... Re8 {[%clk 0:00:06.4]} 42. gxh3 {[%clk 0:01:17.3]} 42... Bf3 {[%clk
0:00:06.4]} 43. Qxg6 {[%clk 0:01:16.6]} 43... fxg6 {[%clk 0:00:06.7]} 44. Rd2
{[%clk 0:01:16]} 1-0